[Event "Titled Tuesday Blitz June 07 Late 2022"]
[White "Barria Zuniga, Daniel"]
[Black "Zhigalko, Sergei"]
[WhiteFideId "3400816"]
[BlackFideId "13502956"]
[WhiteElo "2414"]
[BlackElo "2662"]
[Result "0-1"]
[Round "06"]
[TimeControl "180+1"]
[Date "2022.06.07"]
[WhiteClock "0:00:04"]
[BlackClock "0:00:04"]

1. d4 {[%clk 0:03:00]}  Nf6 {[%clk 0:02:59]} 2. c4 {[%clk 0:02:59]}  e6 {[%clk 0:02:59]} 3. Nf3 {[%clk 0:02:59]}  b6 {[%clk 0:02:59]} 4. g3 {[%clk 0:02:58]}  Ba6 {[%clk 0:02:59]} 5. Qc2 {[%clk 0:02:58]}  Bb4+ {[%clk 0:02:58]} 6. Nbd2 {[%clk 0:02:56]}  Bb7 {[%clk 0:02:57]} 7. Bg2 {[%clk 0:02:55]}  Be4 {[%clk 0:02:57]} 8. Qd1 {[%clk 0:02:48]}  O-O {[%clk 0:02:56]} 9. O-O {[%clk 0:02:48]}  Bxd2 {[%clk 0:02:56]} 10. Qxd2 {[%clk 0:02:48]}  d6 {[%clk 0:02:56]} 11. b3 {[%clk 0:02:48]}  a5 {[%clk 0:02:54]} 12. Bb2 {[%clk 0:02:48]}  Nbd7 {[%clk 0:02:55]} 13. Rfe1 {[%clk 0:02:47]}  Re8 {[%clk 0:02:54]} 14. Bf1 {[%clk 0:02:46]}  h6 {[%clk 0:02:47]} 15. Nh4 {[%clk 0:02:45]}  Bb7 {[%clk 0:02:39]} 16. f3 {[%clk 0:02:44]}  d5 {[%clk 0:02:36]} 17. Ng2 {[%clk 0:02:35]}  a4 {[%clk 0:02:32]} 18. Nf4 {[%clk 0:02:23]}  Qe7 {[%clk 0:02:27]} 19. Bg2 {[%clk 0:02:15]}  dxc4 {[%clk 0:01:35]} 20. bxc4 {[%clk 0:02:13]}  a3 {[%clk 0:01:36]} 21. Bc3 {[%clk 0:02:11]}  e5 {[%clk 0:01:36]} 22. dxe5 {[%clk 0:01:38]}  Nxe5 {[%clk 0:01:35]} 23. Nd5 {[%clk 0:01:38]}  Nxd5 {[%clk 0:01:17]} 24. cxd5 {[%clk 0:01:36]}  Qc5+ {[%clk 0:01:18]} 25. Qd4 {[%clk 0:01:26]}  Qxd5 {[%clk 0:01:03]} 26. Qxd5 {[%clk 0:01:23]}  Bxd5 {[%clk 0:01:02]} 27. Bxe5 {[%clk 0:01:21]}  Rxe5 {[%clk 0:01:00]} 28. f4 {[%clk 0:01:21]}  Bxg2 {[%clk 0:00:46]} 29. fxe5 {[%clk 0:01:21]}  Bd5 {[%clk 0:00:47]} 30. Rec1 {[%clk 0:01:10]}  c6 {[%clk 0:00:45]} 31. Kf2 {[%clk 0:01:08]}  b5 {[%clk 0:00:42]} 32. Ke3 {[%clk 0:01:08]}  Ra4 {[%clk 0:00:40]} 33. Rc3 {[%clk 0:00:52]}  Kf8 {[%clk 0:00:27]} 34. Kd2 {[%clk 0:00:48]}  Ke7 {[%clk 0:00:23]} 35. Rac1 {[%clk 0:00:36]}  Ke6 {[%clk 0:00:15]} 36. Rxc6+ {[%clk 0:00:33]}  Bxc6 {[%clk 0:00:16]} 37. Rxc6+ {[%clk 0:00:32]}  Kd5 {[%clk 0:00:13]} 38. Rc7 {[%clk 0:00:26]}  Rb4 {[%clk 0:00:13]} 39. Kd3 {[%clk 0:00:17]}  Rb2 {[%clk 0:00:10]} 40. Rc2 {[%clk 0:00:17]}  Rxc2 {[%clk 0:00:05]} 41. Kxc2 {[%clk 0:00:17]}  Kc4 {[%clk 0:00:06]} 42. h3 {[%clk 0:00:13]}  b4 {[%clk 0:00:05]} 43. h4 {[%clk 0:00:12]}  h5 {[%clk 0:00:05]} 44. e3 {[%clk 0:00:11]}  Kc5 {[%clk 0:00:03]} 45. Kb3 {[%clk 0:00:11]}  Kb5 {[%clk 0:00:03]} 46. Kc2 {[%clk 0:00:11]}  Kc4 {[%clk 0:00:03]} 47. e4 {[%clk 0:00:10]}  Kc5 {[%clk 0:00:02]} 48. Kd3 {[%clk 0:00:09]}  Kb5 {[%clk 0:00:02]} 49. Kc2 {[%clk 0:00:08]}  Kc4 {[%clk 0:00:02]} 50. Kb1 {[%clk 0:00:05]}  b3 {[%clk 0:00:02]} 51. axb3+ {[%clk 0:00:05]}  Kxb3 {[%clk 0:00:03]} 52. Ka1 {[%clk 0:00:05]}  Kc4 {[%clk 0:00:03]} 53. Ka2 {[%clk 0:00:05]}  Kd4 {[%clk 0:00:03]} 54. Kxa3 {[%clk 0:00:06]}  Kxe5 {[%clk 0:00:04]} 55. Kb3 {[%clk 0:00:04]}  Kxe4 {[%clk 0:00:04]} 0-1


[Site "https://www.chess.com"]

[Event "Titled Tuesday Blitz June 07 Late 2022"]
[White "Bayo Milagro, Alvaro"]
[Black "Bryakin, Mikhail"]
[WhiteFideId "22275240"]
[BlackFideId "4165314"]
[WhiteElo "2270"]
[BlackElo "2417"]
[Result "1-0"]
[Round "06"]
[TimeControl "180+1"]
[Date "2022.06.07"]
[WhiteClock "0:00:04"]
[BlackClock "0:01:07"]

1. d4 {[%clk 0:02:57]}  Nf6 {[%clk 0:02:56]} 2. c4 {[%clk 0:02:56]}  e5 {[%clk 0:02:57]} 3. dxe5 {[%clk 0:02:56]}  Ng4 {[%clk 0:02:58]} 4. Bf4 {[%clk 0:02:56]}  Nc6 {[%clk 0:02:57]} 5. Nf3 {[%clk 0:02:57]}  Bb4+ {[%clk 0:02:56]} 6. Nbd2 {[%clk 0:02:57]}  Qe7 {[%clk 0:02:56]} 7. e3 {[%clk 0:02:50]}  Ngxe5 {[%clk 0:02:55]} 8. Nxe5 {[%clk 0:02:51]}  Nxe5 {[%clk 0:02:54]} 9. Be2 {[%clk 0:02:51]}  O-O {[%clk 0:02:53]} 10. O-O {[%clk 0:02:52]}  Bxd2 {[%clk 0:02:53]} 11. Qxd2 {[%clk 0:02:52]}  d6 {[%clk 0:02:54]} 12. Rac1 {[%clk 0:02:51]}  b6 {[%clk 0:02:54]} 13. b4 {[%clk 0:02:51]}  f6 {[%clk 0:02:32]} 14. c5 {[%clk 0:02:50]}  Be6 {[%clk 0:02:30]} 15. cxd6 {[%clk 0:02:49]}  cxd6 {[%clk 0:02:31]} 16. Rfd1 {[%clk 0:02:48]}  Rfd8 {[%clk 0:02:31]} 17. Bg3 {[%clk 0:02:33]}  d5 {[%clk 0:02:25]} 18. Qd4 {[%clk 0:02:25]}  Nc4 {[%clk 0:02:23]} 19. Qc3 {[%clk 0:01:45]}  b5 {[%clk 0:02:16]} 20. Bf3 {[%clk 0:01:42]}  Rd7 {[%clk 0:02:15]} 21. Rd3 {[%clk 0:01:32]}  Rad8 {[%clk 0:02:15]} 22. Rcd1 {[%clk 0:01:32]}  a6 {[%clk 0:02:11]} 23. a3 {[%clk 0:01:33]}  Qf7 {[%clk 0:02:10]} 24. h3 {[%clk 0:01:31]}  Bf5 {[%clk 0:02:08]} 25. Rd4 {[%clk 0:01:26]}  Be4 {[%clk 0:02:08]} 26. Bg4 {[%clk 0:01:14]}  Re7 {[%clk 0:02:08]} 27. Be2 {[%clk 0:01:07]}  h5 {[%clk 0:02:06]} 28. f3 {[%clk 0:01:05]}  Bf5 {[%clk 0:02:06]} 29. e4 {[%clk 0:01:02]}  Be6 {[%clk 0:02:06]} 30. Bxc4 {[%clk 0:01:02]}  bxc4 {[%clk 0:02:05]} 31. exd5 {[%clk 0:01:02]}  Rxd5 {[%clk 0:02:04]} 32. Qxc4 {[%clk 0:00:58]}  Rg5 {[%clk 0:02:04]} 33. Rd8+ {[%clk 0:00:53]}  Kh7 {[%clk 0:02:04]} 34. Qf4 {[%clk 0:00:44]}  Qg6 {[%clk 0:01:55]} 35. Kh2 {[%clk 0:00:41]}  Bxh3 {[%clk 0:01:43]} 36. Kxh3 {[%clk 0:00:33]}  Ree5 {[%clk 0:01:44]} 37. Rc8 {[%clk 0:00:21]}  h4 {[%clk 0:01:44]} 38. Bxh4 {[%clk 0:00:12]}  Rxg2 {[%clk 0:01:40]} 39. Rdd8 {[%clk 0:00:12]}  Qb1 {[%clk 0:01:30]} 40. Rh8+ {[%clk 0:00:08]}  Kg6 {[%clk 0:01:31]} 41. Kxg2 {[%clk 0:00:09]}  Qa2+ {[%clk 0:01:23]} 42. Bf2 {[%clk 0:00:09]}  Rg5+ {[%clk 0:01:23]} 43. Kf1 {[%clk 0:00:08]}  Qxa3 {[%clk 0:01:15]} 44. Qe4+ {[%clk 0:00:08]}  Rf5 {[%clk 0:01:16]} 45. Rh4 {[%clk 0:00:05]}  Qc1+ {[%clk 0:01:07]} 46. Rxc1 {[%clk 0:00:04]} 1-0


[Site "https://www.chess.com"]

[Event "Titled Tuesday Blitz June 07 Late 2022"]
[White "Golubovskis, Maksims"]
[Black "Velikanov, Alexander"]
[WhiteFideId "11608528"]
[BlackFideId "2039290"]
[WhiteElo "2102"]
[BlackElo "2259"]
[Result "1-0"]
[Round "06"]
[TimeControl "180+1"]
[Date "2022.06.07"]
[WhiteClock "0:01:11"]
[BlackClock "0:01:23"]

1. e4 {[%clk 0:03:00]}  d6 {[%clk 0:02:59]} 2. d4 {[%clk 0:03:00]}  Nf6 {[%clk 0:03:00]} 3. Nc3 {[%clk 0:03:00]}  e5 {[%clk 0:03:01]} 4. Nf3 {[%clk 0:02:59]}  Nbd7 {[%clk 0:03:01]} 5. Bc4 {[%clk 0:02:58]}  Be7 {[%clk 0:03:01]} 6. a4 {[%clk 0:02:57]}  O-O {[%clk 0:03:01]} 7. O-O {[%clk 0:02:57]}  a6 {[%clk 0:03:01]} 8. Re1 {[%clk 0:02:55]}  b6 {[%clk 0:03:00]} 9. h3 {[%clk 0:02:44]}  Bb7 {[%clk 0:03:00]} 10. Bg5 {[%clk 0:02:33]}  h6 {[%clk 0:02:43]} 11. Bh4 {[%clk 0:02:30]}  c6 {[%clk 0:02:42]} 12. Qd2 {[%clk 0:02:24]}  b5 {[%clk 0:02:37]} 13. axb5 {[%clk 0:02:22]}  axb5 {[%clk 0:02:38]} 14. Bb3 {[%clk 0:02:20]}  Qc7 {[%clk 0:02:19]} 15. dxe5 {[%clk 0:02:10]}  dxe5 {[%clk 0:02:17]} 16. Rad1 {[%clk 0:01:56]}  Nc5 {[%clk 0:02:16]} 17. Bg3 {[%clk 0:01:48]}  Nfd7 {[%clk 0:02:06]} 18. Nh4 {[%clk 0:01:37]}  b4 {[%clk 0:02:02]} 19. Na4 {[%clk 0:01:28]}  Bg5 {[%clk 0:01:58]} 20. Qd6 {[%clk 0:01:23]}  Nxa4 {[%clk 0:01:41]} 21. Qxc7 {[%clk 0:01:20]}  Bxh4 {[%clk 0:01:24]} 22. Bxh4 {[%clk 0:01:11]}  Ndc5 {[%clk 0:01:23]} 1-0


[Site "https://www.chess.com"]

[Event "Titled Tuesday Blitz June 07 Late 2022"]
[White "Gurevich, Dmitry"]
[Black "Rosen, Eric"]
[WhiteFideId "2000407"]
[BlackFideId "2032562"]
[WhiteElo "2506"]
[BlackElo "2362"]
[Result "0-1"]
[Round "06"]
[TimeControl "180+1"]
[Date "2022.06.07"]
[WhiteClock "0:00:03"]
[BlackClock "0:00:03"]

1. d4 {[%clk 0:03:00]}  d5 {[%clk 0:02:59]} 2. c4 {[%clk 0:03:00]}  e6 {[%clk 0:02:59]} 3. Nc3 {[%clk 0:03:00]}  Nf6 {[%clk 0:03:00]} 4. Nf3 {[%clk 0:02:59]}  a6 {[%clk 0:02:59]} 5. c5 {[%clk 0:02:58]}  b6 {[%clk 0:02:59]} 6. cxb6 {[%clk 0:02:58]}  c5 {[%clk 0:03:00]} 7. e3 {[%clk 0:02:48]}  cxd4 {[%clk 0:02:48]} 8. exd4 {[%clk 0:02:45]}  Qxb6 {[%clk 0:02:44]} 9. Bd3 {[%clk 0:02:44]}  Bd6 {[%clk 0:02:42]} 10. O-O {[%clk 0:02:43]}  Nbd7 {[%clk 0:02:40]} 11. a3 {[%clk 0:02:35]}  O-O {[%clk 0:02:38]} 12. b4 {[%clk 0:02:32]}  Bb7 {[%clk 0:02:25]} 13. Rb1 {[%clk 0:02:26]}  Ne4 {[%clk 0:02:19]} 14. Na4 {[%clk 0:02:21]}  Qc7 {[%clk 0:02:16]} 15. Bb2 {[%clk 0:02:15]}  f5 {[%clk 0:02:09]} 16. Nc5 {[%clk 0:02:09]}  a5 {[%clk 0:01:50]} 17. Nxe6 {[%clk 0:02:07]}  Qb6 {[%clk 0:01:37]} 18. Nxf8 {[%clk 0:02:05]}  Rxf8 {[%clk 0:01:32]} 19. bxa5 {[%clk 0:01:58]}  Qxa5 {[%clk 0:01:32]} 20. Ne5 {[%clk 0:01:57]}  Ndf6 {[%clk 0:01:16]} 21. Ba1 {[%clk 0:01:28]}  Ba6 {[%clk 0:01:09]} 22. Bxa6 {[%clk 0:01:21]}  Qxa6 {[%clk 0:01:10]} 23. f3 {[%clk 0:01:17]}  Ng5 {[%clk 0:00:45]} 24. Qd3 {[%clk 0:01:14]}  Qa7 {[%clk 0:00:32]} 25. Kh1 {[%clk 0:01:08]}  Nh5 {[%clk 0:00:30]} 26. g3 {[%clk 0:01:02]}  Ne6 {[%clk 0:00:17]} 27. Rb3 {[%clk 0:00:54]}  Rf6 {[%clk 0:00:12]} 28. Rc1 {[%clk 0:00:49]}  h6 {[%clk 0:00:04]} 29. Rc6 {[%clk 0:00:43]}  Ng5 {[%clk 0:00:03]} 30. Kg2 {[%clk 0:00:35]}  Ne6 {[%clk 0:00:02]} 31. Rxd6 {[%clk 0:00:28]}  Nef4+ {[%clk 0:00:02]} 32. gxf4 {[%clk 0:00:13]}  Nxf4+ {[%clk 0:00:03]} 33. Kf1 {[%clk 0:00:11]}  Nxd3 {[%clk 0:00:04]} 34. Rd8+ {[%clk 0:00:11]}  Kh7 {[%clk 0:00:04]} 35. Rxd3 {[%clk 0:00:12]}  Qa6 {[%clk 0:00:03]} 36. Kf2 {[%clk 0:00:10]}  Rb6 {[%clk 0:00:03]} 37. Rd7 {[%clk 0:00:05]}  Rb1 {[%clk 0:00:03]} 38. Bc3 {[%clk 0:00:05]}  f4 {[%clk 0:00:02]} 39. Bd2 {[%clk 0:00:04]}  Qe6 {[%clk 0:00:02]} 40. Bxf4 {[%clk 0:00:03]}  Qh3 {[%clk 0:00:03]} 0-1


[Site "https://www.chess.com"]

[Event "Titled Tuesday Blitz June 07 Late 2022"]
[White "Hansen, Eric"]
[Black "Abarca Gonzalez, Nicolas"]
[WhiteFideId "2606771"]
[BlackFideId "3409422"]
[WhiteElo "2568"]
[BlackElo "2504"]
[Result "0-1"]
[Round "06"]
[TimeControl "180+1"]
[Date "2022.06.07"]
[WhiteClock "0:00:02"]
[BlackClock "0:00:33"]

1. b3 {[%clk 0:02:53]}  Nf6 {[%clk 0:02:49]} 2. Bb2 {[%clk 0:02:53]}  g6 {[%clk 0:02:48]} 3. c4 {[%clk 0:02:51]}  d5 {[%clk 0:02:45]} 4. cxd5 {[%clk 0:02:51]}  Qxd5 {[%clk 0:02:44]} 5. Nc3 {[%clk 0:02:45]}  Qa5 {[%clk 0:02:45]} 6. a3 {[%clk 0:02:35]}  Bh6 {[%clk 0:02:44]} 7. b4 {[%clk 0:02:31]}  Qf5 {[%clk 0:02:41]} 8. e3 {[%clk 0:02:30]}  O-O {[%clk 0:02:39]} 9. Nf3 {[%clk 0:02:29]}  Rd8 {[%clk 0:02:36]} 10. Bc4 {[%clk 0:02:28]}  b6 {[%clk 0:02:32]} 11. Qb3 {[%clk 0:02:19]}  e6 {[%clk 0:02:24]} 12. Nb5 {[%clk 0:02:18]}  Ne8 {[%clk 0:02:16]} 13. Nbd4 {[%clk 0:01:41]}  Qh5 {[%clk 0:02:11]} 14. h3 {[%clk 0:01:04]}  Bg7 {[%clk 0:01:50]} 15. O-O {[%clk 0:00:54]}  Bb7 {[%clk 0:01:45]} 16. Rac1 {[%clk 0:00:47]}  Nd7 {[%clk 0:01:42]} 17. Be2 {[%clk 0:00:39]}  Qh6 {[%clk 0:01:27]} 18. b5 {[%clk 0:00:31]}  Nc5 {[%clk 0:01:26]} 19. Qc2 {[%clk 0:00:32]}  e5 {[%clk 0:01:23]} 20. Nc6 {[%clk 0:00:32]}  Bxc6 {[%clk 0:01:18]} 21. bxc6 {[%clk 0:00:33]}  e4 {[%clk 0:01:19]} 22. Nd4 {[%clk 0:00:33]}  Nd6 {[%clk 0:01:14]} 23. a4 {[%clk 0:00:33]}  Qg5 {[%clk 0:01:10]} 24. Ba3 {[%clk 0:00:32]}  Bxd4 {[%clk 0:01:06]} 25. exd4 {[%clk 0:00:33]}  Ne6 {[%clk 0:01:07]} 26. Bg4 {[%clk 0:00:24]}  Nf4 {[%clk 0:01:05]} 27. g3 {[%clk 0:00:18]}  Nd3 {[%clk 0:01:03]} 28. Rb1 {[%clk 0:00:18]}  h5 {[%clk 0:01:01]} 29. Bd7 {[%clk 0:00:18]}  Nf5 {[%clk 0:00:54]} 30. h4 {[%clk 0:00:19]}  Nxh4 {[%clk 0:00:53]} 31. Rb5 {[%clk 0:00:12]}  Nf3+ {[%clk 0:00:52]} 32. Kg2 {[%clk 0:00:12]}  Qxb5 {[%clk 0:00:50]} 33. Qa2 {[%clk 0:00:03]}  Nde1+ {[%clk 0:00:48]} 34. Rxe1 {[%clk 0:00:02]}  Nxe1+ {[%clk 0:00:49]} 35. Kg1 {[%clk 0:00:02]}  Qg5 {[%clk 0:00:43]} 36. Bb4 {[%clk 0:00:02]}  Nf3+ {[%clk 0:00:43]} 37. Kg2 {[%clk 0:00:02]}  Rxd7 {[%clk 0:00:35]} 38. cxd7 {[%clk 0:00:02]}  Rd8 {[%clk 0:00:36]} 39. Qc4 {[%clk 0:00:02]}  Rxd7 {[%clk 0:00:35]} 40. Qc6 {[%clk 0:00:02]}  Qd5 {[%clk 0:00:33]} 0-1


[Site "https://www.chess.com"]

[Event "Titled Tuesday Blitz June 07 Late 2022"]
[White "Hjartarson, Johann"]
[Black "Meunier-Pion, Jean"]
[WhiteFideId "2300044"]
[BlackFideId "20685327"]
[WhiteElo "2458"]
[BlackElo "2124"]
[Result "1-0"]
[Round "06"]
[TimeControl "180+1"]
[Date "2022.06.07"]
[WhiteClock "0:01:14"]
[BlackClock "0:00:02"]

1. e4 {[%clk 0:03:00]}  c5 {[%clk 0:02:59]} 2. Nc3 {[%clk 0:03:00]}  d6 {[%clk 0:02:59]} 3. g3 {[%clk 0:02:58]}  Nc6 {[%clk 0:02:57]} 4. Bg2 {[%clk 0:02:58]}  g6 {[%clk 0:02:57]} 5. d3 {[%clk 0:02:57]}  Bg7 {[%clk 0:02:57]} 6. Be3 {[%clk 0:02:57]}  Nd4 {[%clk 0:02:52]} 7. Qd2 {[%clk 0:02:53]}  Rb8 {[%clk 0:02:40]} 8. Rb1 {[%clk 0:02:46]}  b5 {[%clk 0:02:38]} 9. Nce2 {[%clk 0:02:45]}  b4 {[%clk 0:02:33]} 10. h4 {[%clk 0:02:41]}  a5 {[%clk 0:01:57]} 11. h5 {[%clk 0:02:39]}  gxh5 {[%clk 0:01:54]} 12. Nf4 {[%clk 0:02:32]}  Nf6 {[%clk 0:01:40]} 13. Bxd4 {[%clk 0:02:23]}  cxd4 {[%clk 0:01:39]} 14. Nxh5 {[%clk 0:02:23]}  Nxh5 {[%clk 0:01:38]} 15. Rxh5 {[%clk 0:02:22]}  e5 {[%clk 0:01:26]} 16. Bh3 {[%clk 0:02:19]}  h6 {[%clk 0:00:35]} 17. Nf3 {[%clk 0:02:12]}  Bxh3 {[%clk 0:00:23]} 18. Rxh3 {[%clk 0:02:11]}  Rc8 {[%clk 0:00:11]} 19. Nh4 {[%clk 0:02:00]}  Bf6 {[%clk 0:00:07]} 20. Nf5 {[%clk 0:02:00]}  Bg5 {[%clk 0:00:07]} 21. f4 {[%clk 0:02:00]}  exf4 {[%clk 0:00:07]} 22. gxf4 {[%clk 0:01:59]}  Bf6 {[%clk 0:00:06]} 23. Kf1 {[%clk 0:01:52]}  Rc5 {[%clk 0:00:06]} 24. Re1 {[%clk 0:01:43]}  Kd7 {[%clk 0:00:06]} 25. Qf2 {[%clk 0:01:37]}  h5 {[%clk 0:00:05]} 26. Re2 {[%clk 0:01:32]}  h4 {[%clk 0:00:05]} 27. Nxd4 {[%clk 0:01:32]}  Bxd4 {[%clk 0:00:05]} 28. Qxd4 {[%clk 0:01:31]}  Qc8 {[%clk 0:00:03]} 29. Qf6 {[%clk 0:01:26]}  Kc6 {[%clk 0:00:03]} 30. Rxh4 {[%clk 0:01:22]}  Rxh4 {[%clk 0:00:01]} 31. Qxh4 {[%clk 0:01:21]}  Qe6 {[%clk 0:00:02]} 32. b3 {[%clk 0:01:20]}  a4 {[%clk 0:00:02]} 33. d4 {[%clk 0:01:14]}  Rc3 {[%clk 0:00:02]} 34. d5+ {[%clk 0:01:14]} 1-0


[Site "https://www.chess.com"]

[Event "Titled Tuesday Blitz June 07 Late 2022"]
[White "Hosseinzadeh, Nima"]
[Black "Bortnyk, Olexandr"]
[WhiteFideId "12505323"]
[BlackFideId "14120828"]
[WhiteElo "2066"]
[BlackElo "2723"]
[Result "0-1"]
[Round "06"]
[TimeControl "180+1"]
[Date "2022.06.07"]
[WhiteClock "0:00:03"]
[BlackClock "0:00:04"]

1. e4 {[%clk 0:02:56]}  Nf6 {[%clk 0:02:54]} 2. e5 {[%clk 0:02:56]}  Nd5 {[%clk 0:02:54]} 3. d4 {[%clk 0:02:55]}  d6 {[%clk 0:02:53]} 4. Nf3 {[%clk 0:02:56]}  dxe5 {[%clk 0:02:54]} 5. Nxe5 {[%clk 0:02:57]}  c6 {[%clk 0:02:54]} 6. Be2 {[%clk 0:02:53]}  Bf5 {[%clk 0:02:54]} 7. O-O {[%clk 0:02:45]}  Nd7 {[%clk 0:02:54]} 8. c4 {[%clk 0:02:44]}  Nb4 {[%clk 0:02:47]} 9. Nd3 {[%clk 0:02:02]}  Nxd3 {[%clk 0:02:46]} 10. Bxd3 {[%clk 0:02:03]}  Bxd3 {[%clk 0:02:47]} 11. Qxd3 {[%clk 0:02:04]}  e6 {[%clk 0:02:47]} 12. Nc3 {[%clk 0:01:39]}  Ne5 {[%clk 0:02:27]} 13. Qe2 {[%clk 0:01:28]}  Ng6 {[%clk 0:02:07]} 14. d5 {[%clk 0:01:26]}  Bd6 {[%clk 0:01:36]} 15. dxe6 {[%clk 0:01:18]}  O-O {[%clk 0:01:36]} 16. Rd1 {[%clk 0:01:15]}  Qc7 {[%clk 0:01:27]} 17. g3 {[%clk 0:01:12]}  Rae8 {[%clk 0:01:24]} 18. exf7+ {[%clk 0:01:04]}  Qxf7 {[%clk 0:01:25]} 19. Be3 {[%clk 0:01:03]}  Be5 {[%clk 0:01:00]} 20. Rac1 {[%clk 0:00:29]}  Bxc3 {[%clk 0:00:40]} 21. Rxc3 {[%clk 0:00:30]}  Ne5 {[%clk 0:00:37]} 22. f4 {[%clk 0:00:15]}  Nd7 {[%clk 0:00:23]} 23. Qd3 {[%clk 0:00:11]}  Re7 {[%clk 0:00:15]} 24. Bf2 {[%clk 0:00:04]}  Rfe8 {[%clk 0:00:12]} 25. Qd6 {[%clk 0:00:04]}  Nf6 {[%clk 0:00:11]} 26. Rcd3 {[%clk 0:00:04]}  Qxc4 {[%clk 0:00:06]} 27. b3 {[%clk 0:00:03]}  Qa6 {[%clk 0:00:04]} 28. R3d2 {[%clk 0:00:03]}  Ne4 {[%clk 0:00:04]} 29. Qd4 {[%clk 0:00:01]}  Nxd2 {[%clk 0:00:05]} 30. Rxd2 {[%clk 0:00:02]}  Re2 {[%clk 0:00:04]} 31. Rxe2 {[%clk 0:00:02]}  Qxe2 {[%clk 0:00:05]} 32. Qc3 {[%clk 0:00:02]}  Qxa2 {[%clk 0:00:04]} 33. Kg2 {[%clk 0:00:02]}  Qe2 {[%clk 0:00:03]} 34. Kg1 {[%clk 0:00:02]}  Qe4 {[%clk 0:00:04]} 35. Kf1 {[%clk 0:00:02]}  Qh1+ {[%clk 0:00:03]} 36. Bg1 {[%clk 0:00:02]}  a6 {[%clk 0:00:03]} 37. Qc4+ {[%clk 0:00:01]}  Qd5 {[%clk 0:00:04]} 38. Qc3 {[%clk 0:00:02]}  Rd8 {[%clk 0:00:02]} 39. Be3 {[%clk 0:00:02]}  Qd3+ {[%clk 0:00:03]} 40. Qxd3 {[%clk 0:00:03]}  Rxd3 {[%clk 0:00:03]} 41. b4 {[%clk 0:00:03]}  Rxe3 {[%clk 0:00:04]} 0-1


[Site "https://www.chess.com"]

[Event "Titled Tuesday Blitz June 07 Late 2022"]
[White "Livaic, Leon"]
[Black "Souleidis, Georgios"]
[WhiteFideId "14531534"]
[BlackFideId "4206827"]
[WhiteElo "2540"]
[BlackElo "2401"]
[Result "1-0"]
[Round "06"]
[TimeControl "180+1"]
[Date "2022.06.07"]
[WhiteClock "0:01:04"]
[BlackClock "0:00:07"]

1. d4 {[%clk 0:03:00]}  Nf6 {[%clk 0:02:58]} 2. c4 {[%clk 0:02:59]}  g6 {[%clk 0:02:58]} 3. Nc3 {[%clk 0:02:59]}  Bg7 {[%clk 0:02:58]} 4. e4 {[%clk 0:03:00]}  d6 {[%clk 0:02:59]} 5. h3 {[%clk 0:03:00]}  O-O {[%clk 0:02:59]} 6. Be3 {[%clk 0:03:01]}  e5 {[%clk 0:02:59]} 7. d5 {[%clk 0:03:01]}  Na6 {[%clk 0:02:59]} 8. g4 {[%clk 0:02:55]}  Nc5 {[%clk 0:02:59]} 9. f3 {[%clk 0:02:56]}  Ne8 {[%clk 0:02:57]} 10. Qd2 {[%clk 0:02:50]}  f5 {[%clk 0:02:55]} 11. gxf5 {[%clk 0:02:45]}  gxf5 {[%clk 0:02:55]} 12. h4 {[%clk 0:02:46]}  fxe4 {[%clk 0:02:41]} 13. fxe4 {[%clk 0:02:45]}  Nf6 {[%clk 0:02:41]} 14. Bxc5 {[%clk 0:02:40]}  dxc5 {[%clk 0:02:41]} 15. Bh3 {[%clk 0:02:40]}  Ng4 {[%clk 0:02:35]} 16. Bxg4 {[%clk 0:02:15]}  Bxg4 {[%clk 0:02:33]} 17. Nge2 {[%clk 0:02:15]}  Qf6 {[%clk 0:02:11]} 18. Kd1 {[%clk 0:02:16]}  h5 {[%clk 0:01:54]} 19. Kc2 {[%clk 0:02:12]}  Bh6 {[%clk 0:01:55]} 20. Qd3 {[%clk 0:02:12]}  Qf3 {[%clk 0:01:50]} 21. Raf1 {[%clk 0:02:07]}  Qg2 {[%clk 0:00:48]} 22. Rfg1 {[%clk 0:01:59]}  Qf2 {[%clk 0:00:46]} 23. d6 {[%clk 0:01:52]}  c6 {[%clk 0:00:42]} 24. d7 {[%clk 0:01:53]}  Rad8 {[%clk 0:00:24]} 25. Qd6 {[%clk 0:01:52]}  Qf6 {[%clk 0:00:22]} 26. Qxc5 {[%clk 0:01:47]}  b6 {[%clk 0:00:20]} 27. Rxg4+ {[%clk 0:01:27]}  hxg4 {[%clk 0:00:20]} 28. Qg1 {[%clk 0:01:28]}  Qe6 {[%clk 0:00:18]} 29. Ng3 {[%clk 0:01:28]}  Rf4 {[%clk 0:00:09]} 30. Nf5 {[%clk 0:01:27]}  Rxd7 {[%clk 0:00:08]} 31. Rh2 {[%clk 0:01:12]}  Rxe4 {[%clk 0:00:07]} 32. Nxh6+ {[%clk 0:01:09]}  Qxh6 {[%clk 0:00:07]} 33. Nxe4 {[%clk 0:01:09]}  Qf4 {[%clk 0:00:07]} 34. Qxg4+ {[%clk 0:01:03]}  Qxg4 {[%clk 0:00:06]} 35. Nf6+ {[%clk 0:01:03]}  Kg7 {[%clk 0:00:07]} 36. Nxg4 {[%clk 0:01:04]}  Rd4 {[%clk 0:00:07]} 37. Nxe5 {[%clk 0:01:04]} 1-0


[Site "https://www.chess.com"]